[Event "*** Titled Tuesday Blitz"]
[Site "Chess.com"]
[Date "2019.06.04"]
[Round "7"]
[White "jefferyx"]
[Black "Muracle"]
[Result "1-0"]
[WhiteElo "2915"]
[BlackElo "2554"]
[TimeControl "180+2"]
[EndTime "14:36:17 PDT"]
[Termination "jefferyx won by checkmate"]

1. d4 {[%clk 0:03:01.9]} 1... Nf6 {[%clk 0:03:00.4]} 2. c4 {[%clk 0:03:03.3]}
2... g6 {[%clk 0:03:01.6]} 3. Nc3 {[%clk 0:03:02.3]} 3... d5 {[%clk 0:03:02.5]}
4. cxd5 {[%clk 0:03:04.2]} 4... Nxd5 {[%clk 0:03:03.2]} 5. Na4 {[%clk
0:02:58.3]} 5... e5 {[%clk 0:03:02.1]} 6. e4 {[%clk 0:02:57.5]} 6... Nb6 {[%clk
0:02:53.3]} 7. Nxb6 {[%clk 0:02:55.2]} 7... axb6 {[%clk 0:02:53.9]} 8. d5 {[%clk
0:02:57.1]} 8... Bg7 {[%clk 0:02:52.9]} 9. Nf3 {[%clk 0:02:54.6]} 9... O-O
{[%clk 0:02:53.3]} 10. Bc4 {[%clk 0:02:53]} 10... Nd7 {[%clk 0:02:49.6]} 11. O-O
{[%clk 0:02:53.5]} 11... Nc5 {[%clk 0:02:50.3]} 12. Re1 {[%clk 0:02:45.4]} 12...
c6 {[%clk 0:02:44.3]} 13. Bg5 {[%clk 0:02:43.2]} 13... Qd6 {[%clk 0:02:28.3]}
14. dxc6 {[%clk 0:02:43.6]} 14... Qxc6 {[%clk 0:02:29.5]} 15. Bd5 {[%clk
0:02:41.6]} 15... Qb5 {[%clk 0:02:18.3]} 16. Be7 {[%clk 0:02:06.2]} 16... Re8
{[%clk 0:02:18.1]} 17. Bxc5 {[%clk 0:02:07.5]} 17... bxc5 {[%clk 0:02:15.4]} 18.
Ng5 {[%clk 0:02:09.4]} 18... Be6 {[%clk 0:02:01.6]} 19. Nxe6 {[%clk 0:01:54.3]}
19... fxe6 {[%clk 0:02:02.1]} 20. Bb3 {[%clk 0:01:47.1]} 20... c4 {[%clk
0:01:59.4]} 21. Qe2 {[%clk 0:01:47.5]} 21... Rac8 {[%clk 0:01:41.7]} 22. Rac1
{[%clk 0:01:48.1]} 22... Qb4 {[%clk 0:01:38.8]} 23. Bxc4 {[%clk 0:01:46.6]}
23... Rc6 {[%clk 0:01:24.7]} 24. a3 {[%clk 0:01:41.8]} 24... Qa5 {[%clk
0:01:23.9]} 25. Bb5 {[%clk 0:01:41]} 25... Rxc1 {[%clk 0:01:22.1]} 26. Rxc1
{[%clk 0:01:42.9]} 26... Rd8 {[%clk 0:01:20.5]} 27. Bc4 {[%clk 0:01:30.6]} 27...
Qb6 {[%clk 0:01:15.8]} 28. Rd1 {[%clk 0:01:30]} 28... Rd4 {[%clk 0:00:58.5]} 29.
h4 {[%clk 0:01:31]} 29... Bf6 {[%clk 0:00:54.5]} 30. h5 {[%clk 0:01:31.8]} 30...
Rxd1+ {[%clk 0:00:38.7]} 31. Qxd1 {[%clk 0:01:32]} 31... Qxb2 {[%clk 0:00:40.3]}
32. h6 {[%clk 0:01:21.7]} 32... Qxa3 {[%clk 0:00:33.5]} 33. Bxe6+ {[%clk
0:00:50.5]} 33... Kf8 {[%clk 0:00:32.5]} 34. g3 {[%clk 0:00:52.4]} 34... Qe7
{[%clk 0:00:27.6]} 35. Bb3 {[%clk 0:00:53.3]} 35... Bg5 {[%clk 0:00:12.9]} 36.
Qd5 {[%clk 0:00:53.6]} 36... Ke8 {[%clk 0:00:13.8]} 37. Qb5+ {[%clk 0:00:20]}
37... Kf8 {[%clk 0:00:14.7]} 38. Qc4 {[%clk 0:00:20.5]} 38... Ke8 {[%clk
0:00:08.6]} 39. Qc8+ {[%clk 0:00:21.6]} 39... Qd8 {[%clk 0:00:09.8]} 40. Qxb7
{[%clk 0:00:23.5]} 40... Qe7 {[%clk 0:00:11.1]} 41. Ba4+ {[%clk 0:00:22]} 41...
Kf7 {[%clk 0:00:09.8]} 42. Bb3+ {[%clk 0:00:18.3]} 42... Ke8 {[%clk 0:00:10.8]}
43. Qb8+ {[%clk 0:00:19.7]} 43... Kd7 {[%clk 0:00:10]} 44. Ba4+ {[%clk
0:00:16.7]} 44... Ke6 {[%clk 0:00:11.1]} 45. Qb3+ {[%clk 0:00:17.6]} 45... Kf6
{[%clk 0:00:11.7]} 46. Qf3+ {[%clk 0:00:18.7]} 46... Ke6 {[%clk 0:00:12.1]} 47.
Bb3+ {[%clk 0:00:19.7]} 47... Kd7 {[%clk 0:00:13.2]} 48. Qd3+ {[%clk 0:00:20.6]}
48... Ke8 {[%clk 0:00:14.5]} 49. Qb5+ {[%clk 0:00:21.8]} 49... Kf8 {[%clk
0:00:15.6]} 50. Qd5 {[%clk 0:00:19.5]} 50... Ke8 {[%clk 0:00:16.2]} 51. Qg8+
{[%clk 0:00:20.7]} 51... Kd7 {[%clk 0:00:16.9]} 52. Bf7 {[%clk 0:00:19.4]} 52...
Bxh6 {[%clk 0:00:16.7]} 53. Qxh7 {[%clk 0:00:20.8]} 53... Bf8 {[%clk 0:00:11.5]}
54. Qxg6 {[%clk 0:00:21.8]} 54... Qd6 {[%clk 0:00:13]} 55. Qf5+ {[%clk 0:00:23]}
55... Kc6 {[%clk 0:00:13.4]} 56. Bd5+ {[%clk 0:00:24.9]} 56... Kc5 {[%clk
0:00:14.7]} 57. Qc8+ {[%clk 0:00:26.1]} 57... Kd4 {[%clk 0:00:15.9]} 58. Qc4#
{[%clk 0:00:26.9]} 1-0

[Event "*** Titled Tuesday Blitz"]
[Site "Chess.com"]
[Date "2019.06.04"]
[Round "7"]
[White "SloLev"]
[Black "csati17"]
[Result "0-1"]
[WhiteElo "2489"]
[BlackElo "2517"]
[TimeControl "180+2"]
[EndTime "14:36:19 PDT"]
[Termination "csati17 won by checkmate"]

1. d4 {[%clk 0:02:59.8]} 1... Nf6 {[%clk 0:03:00.6]} 2. Bf4 {[%clk 0:02:59.9]}
2... g6 {[%clk 0:02:59.2]} 3. Nc3 {[%clk 0:03:00.1]} 3... Bg7 {[%clk 0:03:00.6]}
4. e4 {[%clk 0:03:00.7]} 4... d5 {[%clk 0:02:58.5]} 5. e5 {[%clk 0:02:55.1]}
5... Ng8 {[%clk 0:02:52.8]} 6. Qd2 {[%clk 0:02:55]} 6... c6 {[%clk 0:02:50.5]}
7. Nf3 {[%clk 0:02:53.3]} 7... h5 {[%clk 0:02:45.9]} 8. Bd3 {[%clk 0:02:53.4]}
8... Bg4 {[%clk 0:02:42]} 9. Ng5 {[%clk 0:02:26.5]} 9... e6 {[%clk 0:02:41]} 10.
f3 {[%clk 0:02:20.3]} 10... Bf5 {[%clk 0:02:42.1]} 11. Be2 {[%clk 0:02:21.5]}
11... f6 {[%clk 0:02:14]} 12. exf6 {[%clk 0:02:17]} 12... Nxf6 {[%clk
0:02:14.9]} 13. h3 {[%clk 0:02:10.2]} 13... h4 {[%clk 0:02:10.8]} 14. O-O-O
{[%clk 0:02:06.9]} 14... Nh5 {[%clk 0:02:04.9]} 15. Be3 {[%clk 0:01:44.1]} 15...
c5 {[%clk 0:01:22.8]} 16. Rhe1 {[%clk 0:01:37.7]} 16... Nc6 {[%clk 0:01:20.9]}
17. Bb5 {[%clk 0:01:14]} 17... O-O {[%clk 0:01:13.1]} 18. Bxc6 {[%clk
0:00:48.8]} 18... bxc6 {[%clk 0:01:15]} 19. f4 {[%clk 0:00:49.9]} 19... Qa5
{[%clk 0:01:01]} 20. dxc5 {[%clk 0:00:29.8]} 20... d4 {[%clk 0:01:01.1]} 21.
Bxd4 {[%clk 0:00:26.5]} 21... Rad8 {[%clk 0:01:00.1]} 22. Qe3 {[%clk 0:00:25.7]}
22... Rxd4 {[%clk 0:00:28.2]} 23. Rxd4 {[%clk 0:00:27.6]} 23... Qxc5 {[%clk
0:00:29.5]} 24. Rd7 {[%clk 0:00:22.4]} 24... Qxe3+ {[%clk 0:00:20.1]} 25. Rxe3
{[%clk 0:00:24.3]} 25... Nxf4 {[%clk 0:00:21.7]} 26. Nce4 {[%clk 0:00:15.4]}
26... Nxg2 {[%clk 0:00:20.4]} 27. Re2 {[%clk 0:00:16.6]} 27... Nf4 {[%clk
0:00:20.8]} 28. Rf2 {[%clk 0:00:17.3]} 28... e5 {[%clk 0:00:17.5]} 29. Rxa7
{[%clk 0:00:14.6]} 29... Bh6 {[%clk 0:00:17]} 30. Kb1 {[%clk 0:00:14]} 30... Rd8
{[%clk 0:00:12.5]} 31. Rf1 {[%clk 0:00:13.7]} 31... Bg7 {[%clk 0:00:11.3]} 32.
a4 {[%clk 0:00:12.4]} 32... Nxh3 {[%clk 0:00:12.3]} 33. Nc5 {[%clk 0:00:11.7]}
33... Nxg5 {[%clk 0:00:12.3]} 34. a5 {[%clk 0:00:09.5]} 34... h3 {[%clk
0:00:11.9]} 35. a6 {[%clk 0:00:10.3]} 35... h2 {[%clk 0:00:13]} 36. Rb7 {[%clk
0:00:11.2]} 36... Bc8 {[%clk 0:00:13.1]} 37. Rc7 {[%clk 0:00:10.9]} 37... Bxa6
{[%clk 0:00:13]} 38. Nxa6 {[%clk 0:00:12.5]} 38... Nf3 {[%clk 0:00:11.9]} 39.
Rh1 {[%clk 0:00:12.1]} 39... e4 {[%clk 0:00:11.7]} 40. Rxc6 {[%clk 0:00:12.8]}
40... e3 {[%clk 0:00:10.9]} 41. Nb4 {[%clk 0:00:13.5]} 41... e2 {[%clk
0:00:11.3]} 42. Nd3 {[%clk 0:00:14.7]} 42... Rxd3 {[%clk 0:00:12.5]} 43. cxd3
{[%clk 0:00:15.6]} 43... e1=Q+ {[%clk 0:00:14.1]} 44. Rxe1 {[%clk 0:00:16.5]}
44... Nxe1 {[%clk 0:00:16]} 45. Rc8+ {[%clk 0:00:15.6]} 45... Kh7 {[%clk
0:00:16.9]} 46. b4 {[%clk 0:00:17]} 46... h1=Q {[%clk 0:00:18]} 47. Rc1 {[%clk
0:00:18.4]} 47... Qf1 {[%clk 0:00:18.2]} 48. Ka2 {[%clk 0:00:18.3]} 48... Qe2+
{[%clk 0:00:18.9]} 49. Ka3 {[%clk 0:00:19.8]} 49... Qb2+ {[%clk 0:00:19.6]} 50.
Ka4 {[%clk 0:00:21.3]} 50... Qxc1 {[%clk 0:00:21.1]} 51. b5 {[%clk 0:00:22.8]}
51... Nxd3 {[%clk 0:00:22.2]} 52. Ka5 {[%clk 0:00:24.1]} 52... Qc7+ {[%clk
0:00:23]} 53. b6 {[%clk 0:00:26]} 53... Bc3+ {[%clk 0:00:23.4]} 54. Ka6 {[%clk
0:00:27.2]} 54... Qc6 {[%clk 0:00:21.9]} 55. Ka7 {[%clk 0:00:28.3]} 55... Bd4
{[%clk 0:00:23.2]} 56. Kb8 {[%clk 0:00:29.6]} 56... Qxb6+ {[%clk 0:00:24.6]} 57.
Kc8 {[%clk 0:00:31]} 57... Qc6+ {[%clk 0:00:25.5]} 58. Kb8 {[%clk 0:00:32.1]}
58... Be5+ {[%clk 0:00:25.9]} 59. Ka7 {[%clk 0:00:33.4]} 59... Qb5 {[%clk
0:00:24.2]} 60. Ka8 {[%clk 0:00:34.2]} 60... Qb8# {[%clk 0:00:25.6]} 0-1

[Event "*** Titled Tuesday Blitz"]
[Site "Chess.com"]
[Date "2019.06.04"]
[Round "7"]
[White "tbalabayev"]
[Black "Marcus_Harvey"]
[Result "0-1"]
[WhiteElo "2363"]
[BlackElo "2605"]
[TimeControl "180+2"]
[EndTime "14:36:23 PDT"]
[Termination "Marcus_Harvey won by resignation"]

1. Nf3 {[%clk 0:03:01.9]} 1... Nf6 {[%clk 0:03:00.1]} 2. g3 {[%clk 0:03:03.4]}
2... b5 {[%clk 0:03:00.2]} 3. Bg2 {[%clk 0:03:05.3]} 3... Bb7 {[%clk 0:03:01.3]}
4. O-O {[%clk 0:03:07]} 4... e6 {[%clk 0:03:02.9]} 5. d3 {[%clk 0:03:08.6]} 5...
d5 {[%clk 0:03:03.2]} 6. Nbd2 {[%clk 0:03:09.6]} 6... Nbd7 {[%clk 0:03:04.3]} 7.
a4 {[%clk 0:03:08.2]} 7... b4 {[%clk 0:03:04.7]} 8. a5 {[%clk 0:03:08.3]} 8...
c5 {[%clk 0:03:02.7]} 9. c3 {[%clk 0:03:08.8]} 9... bxc3 {[%clk 0:03:01.7]} 10.
bxc3 {[%clk 0:03:10.7]} 10... Be7 {[%clk 0:03:01.8]} 11. Qa4 {[%clk 0:03:10.2]}
11... Qc7 {[%clk 0:03:01.5]} 12. Re1 {[%clk 0:03:02.6]} 12... Bc6 {[%clk
0:03:01.9]} 13. Qc2 {[%clk 0:03:02.3]} 13... O-O {[%clk 0:02:58.4]} 14. e4
{[%clk 0:03:03.3]} 14... Rfc8 {[%clk 0:02:35.8]} 15. exd5 {[%clk 0:02:44.9]}
15... Bxd5 {[%clk 0:02:35.1]} 16. Nc4 {[%clk 0:02:38.5]} 16... Bd6 {[%clk
0:02:21.3]} 17. Qe2 {[%clk 0:02:07.9]} 17... Qc6 {[%clk 0:02:12.3]} 18. Ne3
{[%clk 0:02:06.3]} 18... Rab8 {[%clk 0:02:05.9]} 19. c4 {[%clk 0:02:04]} 19...
Bxf3 {[%clk 0:02:05.6]} 20. Bxf3 {[%clk 0:02:05.6]} 20... Qc7 {[%clk 0:02:06.5]}
21. Nd1 {[%clk 0:02:02.8]} 21... Ne5 {[%clk 0:02:04.2]} 22. Nc3 {[%clk
0:01:52.8]} 22... Nxf3+ {[%clk 0:02:03.7]} 23. Qxf3 {[%clk 0:01:54.5]} 23... a6
{[%clk 0:02:04.8]} 24. Bd2 {[%clk 0:01:41.9]} 24... Nd7 {[%clk 0:01:56.5]} 25.
Ne4 {[%clk 0:01:23]} 25... Be5 {[%clk 0:01:51.3]} 26. Rab1 {[%clk 0:01:23.6]}
26... h6 {[%clk 0:01:48.3]} 27. h4 {[%clk 0:01:17.3]} 27... Rxb1 {[%clk
0:01:36.2]} 28. Rxb1 {[%clk 0:01:17.3]} 28... Rb8 {[%clk 0:01:37.8]} 29. Qd1
{[%clk 0:01:06.4]} 29... Rb7 {[%clk 0:01:34]} 30. Rxb7 {[%clk 0:01:02.4]} 30...
Qxb7 {[%clk 0:01:34.7]} 31. Be3 {[%clk 0:00:58.7]} 31... Qc6 {[%clk 0:01:31.5]}
32. Qb3 {[%clk 0:00:54.6]} 32... f5 {[%clk 0:01:31.5]} 33. Nd2 {[%clk
0:00:44.7]} 33... Bf6 {[%clk 0:01:29.1]} 34. Qd1 {[%clk 0:00:35.3]} 34... Ne5
{[%clk 0:01:22.4]} 35. Qe2 {[%clk 0:00:30]} 35... Qd6 {[%clk 0:01:21.4]} 36. Nb3
{[%clk 0:00:12.4]} 36... Qxd3 {[%clk 0:01:19.8]} 37. Qxd3 {[%clk 0:00:12.8]}
37... Nxd3 {[%clk 0:01:21.7]} 38. Bxc5 {[%clk 0:00:10.1]} 38... Nb2 {[%clk
0:01:22.5]} 39. Bb6 {[%clk 0:00:07.7]} 39... Nxc4 {[%clk 0:01:19.9]} 40. Nc5
{[%clk 0:00:09.6]} 40... Bd4 {[%clk 0:01:21]} 41. Nxa6 {[%clk 0:00:06.9]} 41...
Nxb6 {[%clk 0:01:21.1]} 42. axb6 {[%clk 0:00:08.8]} 42... Bxb6 {[%clk
0:01:22.3]} 43. Nb4 {[%clk 0:00:09.9]} 43... Kf7 {[%clk 0:01:23.6]} 44. Nd3
{[%clk 0:00:11]} 44... Kf6 {[%clk 0:01:24]} 45. Kg2 {[%clk 0:00:12.4]} 45... e5
{[%clk 0:01:24.2]} 46. f3 {[%clk 0:00:14]} 46... g6 {[%clk 0:01:21.9]} 47. Kf1
{[%clk 0:00:15.2]} 47... h5 {[%clk 0:01:22.6]} 48. Ke2 {[%clk 0:00:16.6]} 48...
Ke6 {[%clk 0:01:21.6]} 49. Nb4 {[%clk 0:00:15.9]} 49... Bc7 {[%clk 0:01:21.3]}
50. Kf2 {[%clk 0:00:15.1]} 50... Kd6 {[%clk 0:01:21.6]} 51. Nd3 {[%clk
0:00:16.2]} 51... Kd5 {[%clk 0:01:22.6]} 52. Ke3 {[%clk 0:00:17.2]} 52... Bb6+
{[%clk 0:01:22.6]} 53. Ke2 {[%clk 0:00:18.1]} 53... Ba5 {[%clk 0:01:22.8]} 54.
Ke3 {[%clk 0:00:18.5]} 54... Bb6+ {[%clk 0:01:20]} 55. Ke2 {[%clk 0:00:19.5]}
55... Bc5 {[%clk 0:01:21.6]} 56. Ne1 {[%clk 0:00:17.7]} 56... e4 {[%clk
0:01:18.6]} 57. Ng2 {[%clk 0:00:16.5]} 57... Bd6 {[%clk 0:01:18.1]} 58. f4
{[%clk 0:00:17.3]} 58... Bc5 {[%clk 0:01:19]} 59. Ne1 {[%clk 0:00:18.4]} 59...
Bg1 {[%clk 0:01:15.9]} 60. Nc2 {[%clk 0:00:16.2]} 60... Kc4 {[%clk 0:01:16.8]}
61. Ne1 {[%clk 0:00:14.2]} 61... Kc3 {[%clk 0:01:16.2]} 62. Ng2 {[%clk
0:00:13.7]} 62... Bh2 {[%clk 0:01:10.2]} 63. Kf2 {[%clk 0:00:13.9]} 63... Kd2
{[%clk 0:01:11.7]} 64. Ne1 {[%clk 0:00:03.5]} 64... Bxg3+ {[%clk 0:01:12.3]} 65.
Kxg3 {[%clk 0:00:04.5]} 65... Kxe1 {[%clk 0:01:13.4]} 0-1

[Event "*** Titled Tuesday Blitz"]
[Site "Chess.com"]
[Date "2019.06.04"]
[Round "7"]
[White "ellennilssen"]
[Black "Chesska7"]
[Result "1-0"]
[WhiteElo "2083"]
[BlackElo "2128"]
[TimeControl "180+2"]
[EndTime "14:36:24 PDT"]
[Termination "ellennilssen won by resignation"]

1. d4 {[%clk 0:03:00.5]} 1... Nf6 {[%clk 0:02:59.7]} 2. c4 {[%clk 0:03:01.7]}
2... c5 {[%clk 0:03:00.2]} 3. d5 {[%clk 0:03:00.3]} 3... b5 {[%clk 0:03:01.3]}
4. cxb5 {[%clk 0:03:02.2]} 4... a6 {[%clk 0:03:01.9]} 5. bxa6 {[%clk 0:03:04.1]}
5... g6 {[%clk 0:03:02.2]} 6. Nc3 {[%clk 0:03:05.3]} 6... Bg7 {[%clk 0:03:03.2]}
7. Nf3 {[%clk 0:03:05.9]} 7... O-O {[%clk 0:03:04.4]} 8. g3 {[%clk 0:03:04.7]}
8... d6 {[%clk 0:03:01.5]} 9. Bg2 {[%clk 0:03:05.5]} 9... Bxa6 {[%clk
0:03:01.2]} 10. Rb1 {[%clk 0:03:05.8]} 10... Nbd7 {[%clk 0:03:00]} 11. O-O
{[%clk 0:03:05.7]} 11... Qa5 {[%clk 0:03:01]} 12. Bd2 {[%clk 0:03:05.2]} 12...
Rfb8 {[%clk 0:02:58.7]} 13. b3 {[%clk 0:03:04.8]} 13... Qc7 {[%clk 0:02:50]} 14.
Re1 {[%clk 0:03:03.9]} 14... Ng4 {[%clk 0:02:47.3]} 15. a4 {[%clk 0:02:56.7]}
15... Qb7 {[%clk 0:02:43]} 16. h3 {[%clk 0:02:46.3]} 16... Nge5 {[%clk
0:02:43.6]} 17. Nh4 {[%clk 0:02:45.6]} 17... Nb6 {[%clk 0:02:24]} 18. f4 {[%clk
0:02:39.6]} 18... Ned7 {[%clk 0:02:24.6]} 19. e4 {[%clk 0:02:39.8]} 19... Qa7
{[%clk 0:02:21.8]} 20. Kh2 {[%clk 0:02:38.3]} 20... Bd3 {[%clk 0:02:05.1]} 21.
Rc1 {[%clk 0:02:27.2]} 21... Qa6 {[%clk 0:01:55.1]} 22. Qf3 {[%clk 0:02:13.2]}
22... c4 {[%clk 0:01:45.4]} 23. Re3 {[%clk 0:01:52.6]} 23... Nc5 {[%clk
0:01:40.3]} 24. bxc4 {[%clk 0:01:27]} 24... Bxc4 {[%clk 0:01:27.9]} 25. e5
{[%clk 0:01:28]} 25... Nd3 {[%clk 0:00:18.5]} 26. Rf1 {[%clk 0:00:49.5]} 26...
Nb4 {[%clk 0:00:19.6]} 27. e6 {[%clk 0:00:30.4]} 27... f5 {[%clk 0:00:18.2]} 28.
g4 {[%clk 0:00:25.3]} 28... N4xd5 {[%clk 0:00:17.2]} 29. Nxd5 {[%clk 0:00:20.5]}
29... Bxd5 {[%clk 0:00:16.4]} 30. Qg3 {[%clk 0:00:18.2]} 30... fxg4 {[%clk
0:00:15.9]} 31. hxg4 {[%clk 0:00:17.3]} 31... Bxg2 {[%clk 0:00:16.8]} 32. Kxg2
{[%clk 0:00:17.4]} 32... Nc4 {[%clk 0:00:17]} 33. Re2 {[%clk 0:00:17]} 33... Rb2
{[%clk 0:00:17.2]} 34. Rff2 {[%clk 0:00:16.6]} 34... Nxd2 {[%clk 0:00:16.6]} 35.
Rxd2 {[%clk 0:00:17.5]} 35... Rxd2 {[%clk 0:00:17.3]} 36. Rxd2 {[%clk
0:00:19.4]} 36... Qc6+ {[%clk 0:00:18.1]} 37. Qf3 {[%clk 0:00:18.5]} 37... Qxf3+
{[%clk 0:00:17.3]} 38. Kxf3 {[%clk 0:00:20.4]} 38... Rxa4 {[%clk 0:00:18.5]} 39.
f5 {[%clk 0:00:21]} 39... Bf6 {[%clk 0:00:18.1]} 40. Ng2 {[%clk 0:00:20.6]}
40... gxf5 {[%clk 0:00:19.1]} 41. gxf5 {[%clk 0:00:21.6]} 41... Ra3+ {[%clk
0:00:20.4]} 42. Kg4 {[%clk 0:00:21.3]} 42... Be5 {[%clk 0:00:20.4]} 43. Rc2
{[%clk 0:00:15]} 43... Rg3+ {[%clk 0:00:20.3]} 44. Kh5 {[%clk 0:00:16.3]} 44...
Rxg2 {[%clk 0:00:21.3]} 45. Rxg2+ {[%clk 0:00:16.7]} 45... Kf8 {[%clk
0:00:16.6]} 46. Kh6 {[%clk 0:00:17.9]} 1-0

[Event "*** Titled Tuesday Blitz"]
[Site "Chess.com"]
[Date "2019.06.04"]
[Round "7"]
[White "Antipov_Mikhail_Al"]
[Black "penguingm1"]
[Result "1-0"]
[WhiteElo "2896"]
[BlackElo "2911"]
[TimeControl "180+2"]
[EndTime "14:36:39 PDT"]
[Termination "Antipov_Mikhail_Al won by resignation"]

1. e4 {[%clk 0:03:01.9]} 1... e5 {[%clk 0:03:01]} 2. Nf3 {[%clk 0:03:03]} 2...
Nc6 {[%clk 0:03:02.4]} 3. Bb5 {[%clk 0:03:04.2]} 3... a6 {[%clk 0:03:04]} 4. Ba4
{[%clk 0:03:05.4]} 4... Nf6 {[%clk 0:03:05.5]} 5. Nc3 {[%clk 0:03:06.9]} 5... d6
{[%clk 0:03:05.9]} 6. a3 {[%clk 0:02:55.3]} 6... g6 {[%clk 0:02:26.5]} 7. d4
{[%clk 0:02:44.2]} 7... b5 {[%clk 0:00:45.2]} 8. dxe5 {[%clk 0:02:29.2]} 8...
Nxe5 {[%clk 0:00:44]} 9. Nxe5 {[%clk 0:02:29.8]} 9... bxa4 {[%clk 0:00:41.8]}
10. Bg5 {[%clk 0:01:42]} 10... Bg7 {[%clk 0:00:42.7]} 11. Nc4 {[%clk 0:00:44.8]}
11... h6 {[%clk 0:00:42.5]} 12. Bh4 {[%clk 0:00:42.5]} 12... O-O {[%clk
0:00:43.4]} 13. O-O {[%clk 0:00:43.3]} 13... Re8 {[%clk 0:00:44.6]} 14. Re1
{[%clk 0:00:41.7]} 14... Be6 {[%clk 0:00:33.9]} 15. Ne3 {[%clk 0:00:30.5]} 15...
Qb8 {[%clk 0:00:25.7]} 16. Rb1 {[%clk 0:00:29.3]} 16... Qb7 {[%clk 0:00:22.9]}
17. f3 {[%clk 0:00:29.9]} 17... Qc6 {[%clk 0:00:18.6]} 18. Qd4 {[%clk
0:00:17.9]} 18... Ng4 {[%clk 0:00:11.8]} 19. Qd2 {[%clk 0:00:18.7]} 19... Nf6
{[%clk 0:00:04]} 20. Bf2 {[%clk 0:00:12.8]} 20... Rab8 {[%clk 0:00:05.2]} 21.
Ne2 {[%clk 0:00:11.3]} 21... Qd7 {[%clk 0:00:04.6]} 22. Nd4 {[%clk 0:00:11.8]}
22... Rb7 {[%clk 0:00:06.2]} 23. Qa5 {[%clk 0:00:12.6]} 23... Ra8 {[%clk
0:00:06.5]} 24. Red1 {[%clk 0:00:11.6]} 24... Qe8 {[%clk 0:00:07.8]} 25. Rd2
{[%clk 0:00:11.6]} 25... Bd7 {[%clk 0:00:09.3]} 26. Nc4 {[%clk 0:00:11.5]} 26...
Bb5 {[%clk 0:00:09.5]} 27. Ne3 {[%clk 0:00:11.9]} 27... Nd7 {[%clk 0:00:10.7]}
28. Nd5 {[%clk 0:00:07.7]} 28... Qd8 {[%clk 0:00:11.8]} 29. c4 {[%clk
0:00:06.5]} 29... Bxc4 {[%clk 0:00:08.5]} 30. Nc6 {[%clk 0:00:07.8]} 30... Qf8
{[%clk 0:00:07]} 31. Qxa4 {[%clk 0:00:05.3]} 31... Bb5 {[%clk 0:00:07.9]} 32.
Qc2 {[%clk 0:00:06.2]} 32... Kh8 {[%clk 0:00:08.6]} 33. b4 {[%clk 0:00:06.1]}
33... Rc8 {[%clk 0:00:05.3]} 34. Na5 {[%clk 0:00:06.8]} 34... Rbb8 {[%clk
0:00:06.7]} 35. a4 {[%clk 0:00:08.3]} 35... c6 {[%clk 0:00:05.2]} 36. Ne3 {[%clk
0:00:09.1]} 36... c5 {[%clk 0:00:05.2]} 37. axb5 {[%clk 0:00:09]} 37... cxb4
{[%clk 0:00:06.8]} 38. Qd1 {[%clk 0:00:10.6]} 38... Rxb5 {[%clk 0:00:08.2]} 39.
Rxd6 {[%clk 0:00:11.8]} 39... Nc5 {[%clk 0:00:06]} 40. Nac4 {[%clk 0:00:09.1]}
40... b3 {[%clk 0:00:06.5]} 41. Nd5 {[%clk 0:00:05.6]} 41... b2 {[%clk
0:00:06.1]} 42. Bd4 {[%clk 0:00:03.4]} 42... a5 {[%clk 0:00:05.5]} 43. Bxb2
{[%clk 0:00:03.9]} 43... Rcb8 {[%clk 0:00:03.9]} 44. Nc3 {[%clk 0:00:03.7]}
44... Rb3 {[%clk 0:00:04.5]} 45. Qc2 {[%clk 0:00:04.8]} 45... a4 {[%clk
0:00:05.6]} 46. Ra1 {[%clk 0:00:05.7]} 46... Qe7 {[%clk 0:00:05.8]} 47. Rd2
{[%clk 0:00:06.6]} 47... Qa7 {[%clk 0:00:07.2]} 48. Kh1 {[%clk 0:00:07]} 48...
Qa6 {[%clk 0:00:08.6]} 49. Nd5 {[%clk 0:00:07.2]} 49... Bxb2 {[%clk 0:00:09]}
50. Nxb2 {[%clk 0:00:09.1]} 50... Qa5 {[%clk 0:00:09.7]} 51. Nd1 {[%clk
0:00:08.8]} 51... a3 {[%clk 0:00:10.5]} 52. h4 {[%clk 0:00:09.8]} 52... Qb4
{[%clk 0:00:11.1]} 53. Ra2 {[%clk 0:00:10.6]} 53... Kg7 {[%clk 0:00:11.8]} 54.
N1c3 {[%clk 0:00:11.1]} 54... Ne6 {[%clk 0:00:12.6]} 55. Nxb4 {[%clk 0:00:12.4]}
55... R8xb4 {[%clk 0:00:11.9]} 56. Nd5 {[%clk 0:00:13.3]} 56... Rb8 {[%clk
0:00:12.3]} 57. Rd3 {[%clk 0:00:14.6]} 57... Rb1+ {[%clk 0:00:12.8]} 58. Kh2
{[%clk 0:00:15.5]} 58... R1b2 {[%clk 0:00:12.4]} 59. Qc3+ {[%clk 0:00:17]} 59...
Kh7 {[%clk 0:00:13.6]} 60. Rxa3 {[%clk 0:00:18.9]} 1-0